bitfinex-derivatives/quotes_BNBF0:USTF0_20250908
["timestamp","ask_amount","ask_price","bid_price","bid_amount"]
[1757351722055,1.02146744,877.65,876.77,0.19801417]
[1757351722254,1.02146744,877.67,876.77,0.19801417]
[1757351722450,0.39072788,877.54,876.77,0.19801417]
[1757351722649,2.55390382,878.51,876.77,0.19801417]
[1757351723356,2.55390382,878.52,876.77,0.19801417]
[1757351723854,2.55390382,878.47,876.77,0.19801417]
[1757351725255,2.55390382,878.48,876.77,0.19801417]
[1757351726356,2.55390382,878.51,876.77,0.19801417]
[1757351727857,2.55390382,878.52,876.77,0.19801417]
[1757351728458,2.55390382,878.47,876.77,0.19801417]
[1757351728954,2.55390382,878.46,876.77,0.19801417]
[1757351730459,2.55390382,878.43,876.77,0.19801417]
[1757351730955,2.55390382,878.41,876.77,0.19801417]
[1757351731460,2.55390382,878.42,876.77,0.19801417]
[1757351732057,2.55390382,878.31,876.77,0.19801417]
[1757351732557,1.52985771,877.65,876.77,0.19801417]
[1757351732857,2.55390382,878.32,876.77,0.19801417]
[1757351733058,2.55390382,878.37,876.77,0.19801417]
[1757351733762,2.55390382,878.64,876.77,0.19801417]
[1757351734064,2.55390382,878.7,876.77,0.19801417]
[1757351734858,2.55390382,878.78,876.77,0.19801417]
[1757351736759,2.55390382,878.43,876.77,0.19801417]
[1757351737260,2.55390382,878.44,876.77,0.19801417]
[1757351738766,2.55390382,878.45,876.77,0.19801417]
[1757351739266,2.55390382,878.46,876.77,0.19801417]
[1757351740265,2.55390382,878.52,876.77,0.19801417]
[1757351740865,2.55390382,878.41,876.77,0.19801417]
[1757351742466,2.55390382,878.43,876.77,0.19801417]
[1757351743466,2.55390382,878.46,876.77,0.19801417]
[1757351744563,2.55390382,878.45,876.77,0.19801417]
[1757351744966,2.55390382,878.46,876.77,0.19801417]
[1757351748665,2.55390382,878.45,876.77,0.19801417]
[1757351750267,2.55390382,878.34,876.77,0.19801417]
[1757351751270,2.55390382,878.36,876.77,0.19801417]
[1757351751669,2.55390382,878.38,876.77,0.19801417]
[1757351752169,2.55390382,878.36,876.77,0.19801417]
[1757351752469,1.01874468,877.49,876.77,0.19801417]
[1757351752765,1.52806257,877.66,876.77,0.19801417]
[1757351753068,1.52806257,877.64,876.77,0.19801417]
[1757351753370,1.52806257,877.67,876.77,0.19801417]
[1757351753570,1.52806257,877.88,876.77,0.19801417]
[1757351753866,1.52806257,877.87,876.77,0.19801417]
[1757351754471,1.52806257,877.84,876.77,0.19801417]
[1757351754966,1.52806257,877.85,876.77,0.19801417]
[1757351755569,1.52806257,877.83,876.77,0.19801417]
[1757351755965,1.52806257,877.84,876.77,0.19801417]
[1757351756266,1.52806257,877.82,876.77,0.19801417]
[1757351758070,1.52806257,877.81,876.77,0.19801417]
[1757351758971,1.52806257,877.8,876.77,0.19801417]
[1757351760669,0.26406258,877.8,876.77,0.19801417]
[1757351761172,2.55390382,878.4,876.77,0.19801417]
[1757351761570,2.55390382,878.38,876.77,0.19801417]
[1757351763574,2.55390382,878.59,876.77,0.19801417]
[1757351765175,2.55390382,878.58,876.77,0.19801417]
[1757351766273,2.55390382,878.57,876.77,0.19801417]
[1757351766678,2.55390382,878.62,876.77,0.19801417]
[1757351769275,2.55390382,878.63,876.77,0.19801417]
[1757351770475,2.55390382,878.61,876.77,0.19801417]
[1757351770976,2.55390382,878.63,876.77,0.19801417]
[1757351771380,2.55390382,878.64,876.77,0.19801417]
[1757351772475,2.55390382,878.63,876.77,0.19801417]
[1757351773479,2.55390382,878.48,876.77,0.19801417]
[1757351773980,2.55390382,878.37,876.77,0.19801417]
[1757351774978,2.55390382,878.36,876.77,0.19801417]
[1757351775479,2.55390382,878.31,876.77,0.19801417]
[1757351775978,2.55390382,878.32,876.77,0.19801417]
[1757351776484,2.55390382,878.24,876.77,0.19801417]
[1757351777778,2.55390382,878.22,876.77,0.19801417]
[1757351778083,2.55390382,878.18,876.77,0.19801417]
[1757351778779,2.55390382,878.16,876.77,0.19801417]
[1757351779180,2.55390382,878.18,876.77,0.19801417]
[1757351779583,2.55390382,878.16,876.77,0.19801417]
[1757351780785,1.53230287,877.54,876.77,0.19801417]
[1757351780982,0.20928964,877.54,876.77,0.19801417]
[1757351781180,2.55390382,878.23,876.77,0.19801417]
[1757351781784,2.55390382,878.32,876.77,0.19801417]
[1757351782588,1.02161831,877.45,876.77,0.19801417]
[1757351783584,1.02161831,877.5,876.77,0.19801417]
[1757351783781,0.41506505,877.5,876.77,0.19801417]
[1757351784083,2.55390382,878.41,876.77,0.19801417]
[1757351784285,2.55390382,878.42,876.77,0.19801417]
[1757351785388,2.55390382,878.37,876.77,0.19801417]
[1757351785885,0.19795672,878.91,876.77,0.19801417]
[1757351785886,2.55390382,878.67,876.77,0.19801417]
[1757351786990,2.55390382,878.76,876.77,0.19801417]
[1757351787491,2.55390382,878.79,876.77,0.19801417]
[1757351789488,2.55390382,878.78,876.77,0.19801417]
[1757351790088,2.55390382,878.79,876.77,0.19801417]
[1757351790491,0.19795672,878.91,876.77,0.19801417]
[1757351794697,2.75186054,878.91,876.77,0.19801417]
[1757351795297,2.55390382,878.9,876.77,0.19801417]
[1757351795904,2.55390382,878.81,876.77,0.19801417]
[1757351796903,2.55390382,878.71,876.77,0.19801417]
[1757351797404,2.55390382,878.66,876.77,0.19801417]
[1757351797903,2.55390382,878.63,876.77,0.19801417]
[1757351799002,2.55390382,878.62,876.77,0.19801417]
[1757351800004,0.62613507,878.61,876.77,0.19801417]
[1757351800205,0.62613507,878.6,876.77,0.19801417]
[1757351800402,2.55390382,878.28,876.77,0.19801417]
[1757351800601,0.62613507,878.27,876.77,0.19801417]
[1757351800803,0.62613507,878.26,876.77,0.19801417]
[1757351801001,1.53338226,877.57,876.77,0.19801417]
[1757351801206,0.51251576,877.56,876.77,0.19801417]
[1757351801503,2.55390382,878.23,876.77,0.19801417]
[1757351802106,2.55390382,878.26,876.77,0.19801417]
[1757351803603,2.55390382,878.35,876.77,0.19801417]
[1757351805207,2.55390382,878.29,876.77,0.19801417]
[1757351806107,2.55390382,878.28,876.77,0.19801417]
[1757351809916,2.55390382,878.3,876.77,0.19801417]
[1757351810917,2.55390382,878.33,876.77,0.19801417]
[1757351811520,2.55390382,878.31,876.77,0.19801417]
[1757351812420,2.55390382,878.38,876.77,0.19801417]
[1757351812819,2.55390382,878.29,876.77,0.19801417]
[1757351813118,0.63145302,878.28,876.77,0.19801417]
[1757351813322,0.63145302,878.27,876.77,0.19801417]
[1757351813623,0.63145302,878.26,876.77,0.19801417]
[1757351813823,0.63145302,878.25,876.77,0.19801417]
[1757351814023,1.02239407,877.35,876.77,0.19801417]
[1757351814324,2.55390382,878.12,876.77,0.19801417]
[1757351814621,3.56523548,878.43,876.77,0.19801417]
[1757351814622,0.63145413,878.11,876.77,0.19801417]
[1757351814818,0.63145413,878.1,876.77,0.19801417]
[1757351815022,2.55390382,878.17,876.77,0.19801417]
[1757351815925,0.6402265,878.16,876.77,0.19801417]
[1757351816124,2.55390382,878.12,876.77,0.19801417]
[1757351816422,0.6402265,878.11,876.77,0.19801417]
[1757351816621,0.6402265,878.1,876.77,0.19801417]
[1757351816825,0.6402265,878.09,876.77,0.19801417]
[1757351817125,0.6402265,878.08,876.77,0.19801417]
[1757351817326,0.6402265,878.07,876.77,0.19801417]
[1757351817523,0.6402265,878.06,876.77,0.19801417]
[1757351817821,0.6402265,878.05,876.77,0.19801417]
[1757351818019,0.6402265,878.04,876.77,0.19801417]
[1757351818324,0.6402265,878.03,876.77,0.19801417]
[1757351818521,0.6402265,878.02,876.77,0.19801417]
[1757351818821,0.6402265,878.01,876.77,0.19801417]
[1757351819026,0.6402265,878.0,876.77,0.19801417]
[1757351819322,0.6402265,877.99,876.77,0.19801417]
[1757351819524,0.6402265,877.98,876.77,0.19801417]
[1757351819825,0.6402265,877.97,876.77,0.19801417]
[1757351820022,0.6402265,877.96,876.77,0.19801417]
[1757351820226,0.6402265,877.95,876.77,0.19801417]
[1757351820525,0.6402265,877.94,876.77,0.19801417]
[1757351820727,0.6402265,877.93,876.77,0.19801417]
[1757351820928,0.6402265,877.92,876.77,0.19801417]
[1757351821124,0.6402265,877.91,876.77,0.19801417]
[1757351821428,1.53359116,877.51,876.77,0.19801417]
[1757351821627,0.91709911,877.51,876.77,0.19801417]
[1757351822229,2.55390382,878.21,876.77,0.19801417]
[1757351822728,2.55390382,878.2,876.77,0.19801417]
[1757351823225,2.55390382,878.25,876.77,0.19801417]
[1757351824030,2.55390382,878.29,876.77,0.19801417]
[1757351824428,2.55390382,878.27,876.77,0.19801417]
[1757351825332,2.55390382,878.26,876.77,0.19801417]
[1757351826333,2.55390382,878.19,876.77,0.19801417]
[1757351827632,2.55390382,878.16,876.77,0.19801417]
[1757351829037,3.56523548,878.48,876.77,0.19801417]
[1757351829433,0.19795672,878.91,876.77,0.19801417]
[1757351833636,3.19260156,878.9,876.77,0.19801417]
[1757351833936,0.63869774,878.89,876.77,0.19801417]
[1757351834140,0.63869774,878.88,876.77,0.19801417]
[1757351834341,0.63869774,878.87,876.77,0.19801417]
[1757351834542,0.63869774,878.86,876.77,0.19801417]
[1757351834742,0.63869774,878.85,876.77,0.19801417]
[1757351834939,0.63869774,878.84,876.77,0.19801417]
[1757351835137,0.63869774,878.83,876.77,0.19801417]
[1757351835438,0.63869774,878.82,876.77,0.19801417]
[1757351835645,0.63869774,878.81,876.77,0.19801417]
[1757351835839,0.63869774,878.8,876.77,0.19801417]
[1757351836039,0.63869774,878.79,876.77,0.19801417]
[1757351836237,0.63869774,878.78,876.77,0.19801417]
[1757351836437,0.63869774,878.77,876.77,0.19801417]
[1757351836642,0.63869774,878.76,876.77,0.19801417]
[1757351836840,0.63869774,878.75,876.77,0.19801417]
[1757351837043,0.63869774,878.74,876.77,0.19801417]
[1757351837342,0.63869774,878.73,876.77,0.19801417]
[1757351837541,0.63869774,878.72,876.77,0.19801417]
[1757351837742,0.19795672,878.91,876.77,0.19801417]
[1757351837743,0.63869774,878.71,876.77,0.19801417]
[1757351837943,0.63869774,878.7,876.77,0.19801417]
[1757351838141,0.63869774,878.69,876.77,0.19801417]
[1757351838340,0.63869774,878.68,876.77,0.19801417]
[1757351838541,0.63869774,878.67,876.77,0.19801417]
[1757351838740,0.63869774,878.66,876.77,0.19801417]
[1757351838939,2.55390382,878.48,876.77,0.19801417]
[1757351839237,0.63869774,878.47,876.77,0.19801417]
[1757351839445,0.63869774,878.46,876.77,0.19801417]
[1757351839742,0.63869774,878.45,876.77,0.19801417]
[1757351839944,0.63869774,878.44,876.77,0.19801417]
[1757351840143,0.63869774,878.43,876.77,0.19801417]
[1757351840446,0.63869774,878.42,876.77,0.19801417]
[1757351840639,0.63869774,878.41,876.77,0.19801417]
[1757351840845,0.63869774,878.4,876.77,0.19801417]
[1757351841040,0.63869774,878.39,876.77,0.19801417]
[1757351841239,0.63869774,878.38,876.77,0.19801417]
[1757351841444,2.55390382,878.26,876.77,0.19801417]
[1757351841746,0.63869774,878.25,876.77,0.19801417]
[1757351841946,0.63869774,878.24,876.77,0.19801417]
[1757351842148,0.63869774,878.23,876.77,0.19801417]
[1757351842347,1.5337241,877.52,876.77,0.19801417]
[1757351842548,0.63869774,877.51,876.77,0.19801417]
[1757351842748,2.55390382,878.27,876.77,0.19801417]
[1757351843150,2.55390382,878.37,876.77,0.19801417]
[1757351843550,2.55390382,878.57,876.77,0.19801417]
[1757351844145,1.02248846,877.59,876.77,0.19801417]
[1757351844851,1.64945645,877.58,876.77,0.19801417]
[1757351845050,0.62696799,877.57,876.77,0.19801417]
[1757351845250,0.62696799,877.56,876.77,0.19801417]
[1757351845448,0.62696799,877.55,876.77,0.19801417]
[1757351845752,0.62696799,877.54,876.77,0.19801417]
[1757351846047,0.62696799,877.53,876.77,0.19801417]
[1757351846246,0.62696799,877.52,876.77,0.19801417]
[1757351846448,0.62696799,877.51,876.77,0.19801417]
[1757351846648,0.62696799,877.5,876.77,0.19801417]
[1757351846850,0.62696799,877.49,876.77,0.19801417]
[1757351847047,0.62696799,877.48,876.77,0.19801417]
[1757351847250,0.62696799,877.47,876.77,0.19801417]
[1757351847450,0.62696799,877.46,876.77,0.19801417]
[1757351847753,0.62696799,877.45,876.77,0.19801417]
[1757351847953,0.62696799,877.44,876.77,0.19801417]
[1757351848149,0.62696799,877.43,876.77,0.19801417]
[1757351848354,0.62696799,877.42,876.77,0.19801417]
[1757351848553,0.51106714,877.41,876.77,0.19801417]
[1757351848855,1.02248846,877.57,876.77,0.19801417]
[1757351849456,1.02248846,877.55,876.77,0.19801417]
[1757351850454,0.83608297,877.55,876.77,0.19801417]
[1757351851456,2.55390382,878.48,876.77,0.19801417]
[1757351851959,2.55390382,878.45,876.77,0.19801417]
[1757351853058,2.55390382,878.37,876.77,0.19801417]
[1757351853460,2.55390382,878.38,876.77,0.19801417]
[1757351854059,2.55390382,878.35,876.77,0.19801417]
[1757351854263,1.13347902,878.35,876.77,0.19801417]
[1757351854460,3.56523548,878.7,876.77,0.19801417]
[1757351855356,3.56523548,878.75,876.77,0.19801417]
[1757351856358,0.19795672,878.91,876.77,0.19801417]
[1757351862470,1.53292727,878.14,876.77,0.19801417]
[1757351863671,1.53292727,877.97,876.77,0.19801417]
[1757351865167,1.53292727,877.98,876.77,0.19801417]
[1757351865372,1.53292727,877.92,876.77,0.19801417]
[1757351865572,0.62868647,877.91,876.77,0.19801417]
[1757351865773,0.62868647,877.9,876.77,0.19801417]
[1757351866068,0.19702676,877.89,876.77,0.19801417]
[1757351866273,1.53292727,877.62,876.77,0.19801417]
[1757351866473,0.48041072,877.63,876.77,0.19801417]
[1757351866773,2.5547706,878.41,876.77,0.19801417]
[1757351866972,2.5547706,878.43,876.77,0.19801417]
[1757351867570,2.5547706,878.24,876.77,0.19801417]
[1757351868074,2.5547706,878.26,876.77,0.19801417]
[1757351868573,2.5547706,878.25,876.77,0.19801417]
[1757351869075,2.5547706,878.23,876.77,0.19801417]
[1757351870676,2.5547706,878.22,876.77,0.19801417]
[1757351871273,2.5547706,878.2,876.77,0.19801417]
[1757351871873,2.5547706,878.21,876.77,0.19801417]
[1757351873674,2.5547706,878.34,876.77,0.19801417]
[1757351874274,1.89595439,878.34,876.77,0.19801417]
[1757351874779,3.56523548,878.66,876.77,0.19801417]
[1757351875079,3.56523548,878.64,876.77,0.19801417]
[1757351877176,0.19795672,878.91,876.77,0.19801417]
[1757351878180,0.62449698,878.9,876.77,0.19801417]
[1757351878480,0.62449698,878.89,876.77,0.19801417]
[1757351878780,0.62449698,878.88,876.77,0.19801417]
[1757351878980,0.62449698,878.87,876.77,0.19801417]
[1757351879280,0.62446848,878.86,876.77,0.19801417]
[1757351879480,0.62446848,878.85,876.77,0.19801417]
[1757351879780,0.62446848,878.84,876.77,0.19801417]
[1757351879981,0.62446848,878.83,876.77,0.19801417]
[1757351880180,0.62446848,878.82,876.77,0.19801417]
[1757351880380,0.62446848,878.81,876.77,0.19801417]
[1757351880578,1.02137674,877.84,876.77,0.19801417]
[1757351880882,0.62446848,877.83,876.77,0.19801417]
[1757351881175,0.62446848,877.82,876.77,0.19801417]
[1757351881376,0.62446848,877.81,876.77,0.19801417]
[1757351881581,0.62446848,877.8,876.77,0.19801417]
[1757351881880,0.62446848,877.79,876.77,0.19801417]
[1757351882075,0.62446848,877.78,876.77,0.19801417]
[1757351882276,0.62446848,877.77,876.77,0.19801417]
[1757351882481,0.62446848,877.76,876.77,0.19801417]
[1757351882682,0.62446848,877.75,876.77,0.19801417]
[1757351882981,0.62446848,877.74,876.77,0.19801417]
[1757351883281,0.62446848,877.73,876.77,0.19801417]
[1757351883482,0.47294756,877.72,876.77,0.19801417]
[1757351883683,1.02137674,877.78,876.77,0.19801417]
[1757351883882,1.02137674,877.79,876.77,0.19801417]
[1757351885985,1.02137674,877.76,876.77,0.19801417]
[1757351886187,1.02137674,877.72,876.77,0.19801417]
[1757351886487,1.02137674,877.8,876.77,0.19801417]
[1757351886886,1.02137674,877.75,876.77,0.19801417]
[1757351887386,1.02137674,877.76,876.77,0.19801417]
[1757351888386,1.02137674,877.77,876.77,0.19801417]
[1757351890488,1.02137674,877.78,876.77,0.19801417]
[1757351891385,0.77704402,877.78,876.77,0.19801417]
[1757351892185,1.53157824,878.04,876.77,0.19801417]
[1757351893183,1.53157824,877.86,876.77,0.19801417]
[1757351893389,0.55124189,877.87,876.77,0.19801417]
[1757351893586,2.55322937,878.67,876.77,0.19801417]
[1757351893790,2.55322937,878.86,876.77,0.19801417]
[1757351894286,2.55322937,878.88,876.77,0.19801417]
[1757351895586,0.62819513,878.87,876.77,0.19801417]
[1757351895787,0.62819513,878.86,876.77,0.19801417]
[1757351895991,0.62819513,878.85,876.77,0.19801417]
[1757351896291,2.55322937,878.69,876.77,0.19801417]
[1757351896591,0.62819513,878.68,876.77,0.19801417]
[1757351896786,0.62819513,878.67,876.77,0.19801417]
[1757351896988,0.62819513,878.66,876.77,0.19801417]
[1757351897191,0.62819513,878.65,876.77,0.19801417]
[1757351897492,0.62819513,878.64,876.77,0.19801417]
[1757351897692,0.62819513,878.63,876.77,0.19801417]
[1757351897893,0.62819513,878.62,876.77,0.19801417]
[1757351898193,0.62819513,878.61,876.77,0.19801417]
[1757351898493,0.62819513,878.6,876.77,0.19801417]
[1757351898688,0.62819513,878.59,876.77,0.19801417]
[1757351898893,0.62819513,878.58,876.77,0.19801417]
[1757351899093,0.62819513,878.57,876.77,0.19801417]
[1757351899290,0.62819513,878.56,876.77,0.19801417]
[1757351899591,0.62819513,878.55,876.77,0.19801417]
[1757351899793,0.62819513,878.54,876.77,0.19801417]
[1757351899990,0.62819513,878.53,876.77,0.19801417]
[1757351900193,0.62819513,878.52,876.77,0.19801417]
[1757351900390,0.62819513,878.51,876.77,0.19801417]
[1757351900594,0.62819513,878.5,876.77,0.19801417]
[1757351900894,0.62819513,878.49,876.77,0.19801417]
[1757351901191,0.62819513,878.48,876.77,0.19801417]
[1757351901391,0.62819513,878.47,876.77,0.19801417]
[1757351901595,0.62819513,878.46,876.77,0.19801417]
[1757351901791,0.62819513,878.45,876.77,0.19801417]
[1757351901993,0.62819513,878.44,876.77,0.19801417]
[1757351902191,0.48130148,878.43,876.63,1.53360942]
[1757351902394,2.55322937,878.59,876.93,0.1979404]
[1757351902594,2.55322937,878.58,876.93,0.1979404]
[1757351902991,2.55322937,878.57,876.93,0.1979404]
[1757351903498,2.55322937,878.41,876.93,0.1979404]
[1757351904496,2.55322937,878.44,876.93,0.1979404]
[1757351905098,2.55322937,878.43,876.93,0.1979404]
[1757351905595,2.55322937,878.52,876.93,0.1979404]
[1757351906595,2.55322937,878.59,876.93,0.1979404]
[1757351908703,2.55322937,878.7,876.93,0.1979404]
[1757351909199,2.55322937,878.71,876.93,0.1979404]
[1757351910203,2.55322937,878.7,876.93,0.1979404]
[1757351913306,1.53005739,877.92,876.93,0.1979404]
[1757351913511,2.55322937,878.7,876.93,0.1979404]
[1757351914011,2.55322937,878.72,876.93,0.1979404]
[1757351914410,2.55322937,878.71,876.93,0.1979404]
[1757351915511,2.55322937,878.68,876.93,0.1979404]
[1757351916007,2.55322937,878.69,876.93,0.1979404]
[1757351916507,2.55322937,878.68,876.93,0.1979404]
[1757351917012,2.55322937,878.62,876.93,0.1979404]
[1757351918612,2.55322937,878.47,876.93,0.1979404]
[1757351919513,2.55322937,878.45,876.93,0.1979404]
[1757351921412,1.02029208,877.66,876.93,0.1979404]
[1757351921608,2.55322937,878.54,876.93,0.1979404]
[1757351922214,2.55322937,878.56,876.93,0.1979404]
[1757351922715,2.55322937,878.54,876.93,0.1979404]
[1757351923816,2.55322937,878.53,876.93,0.1979404]
[1757351924316,2.55322937,878.52,876.93,0.1979404]
[1757351925815,2.55322937,878.5,876.93,0.1979404]
[1757351926418,2.55322937,878.49,876.93,0.1979404]
[1757351926917,2.55322937,878.48,876.93,0.1979404]
[1757351927820,2.55322937,878.47,876.93,0.1979404]
[1757351929416,2.55322937,878.5,876.93,0.1979404]
[1757351930617,2.55322937,878.51,876.93,0.1979404]
[1757351931617,2.55322937,878.45,876.93,0.1979404]
[1757351931817,2.00701906,878.45,876.93,0.1979404]
[1757351932019,3.56523548,878.84,876.93,0.1979404]
[1757351932216,3.56523548,878.78,876.93,0.1979404]
[1757351933118,3.56523548,878.75,876.93,0.1979404]
[1757351933517,1.53140102,877.8,876.93,0.1979404]
[1757351933821,3.56523548,878.75,876.93,1.21660611]
[1757351934118,3.56523548,878.75,877.13,0.76479335]
[1757351934321,3.56523548,878.93,877.13,0.76479335]
[1757351935319,3.56523548,878.92,877.13,0.76479335]
[1757351936124,3.56523548,878.92,876.93,1.21660611]
[1757351936423,3.56523548,878.89,876.93,1.21660611]
[1757351937321,0.19800234,879.02,876.93,0.1979404]
[1757351947426,2.55329725,878.65,876.93,0.1979404]
[1757351948131,2.55329725,878.64,876.93,0.1979404]
[1757351949029,2.55329725,878.63,876.93,0.1979404]
[1757351951134,2.55329725,878.41,876.93,0.1979404]
[1757351951535,1.02169408,877.59,876.93,0.1979404]
[1757351951738,2.55329725,878.41,876.93,0.1979404]
[1757351952132,2.55329725,878.68,876.93,0.1979404]
[1757351952631,2.55329725,878.71,876.93,0.1979404]
[1757351953736,1.53248846,877.96,876.93,0.1979404]
[1757351954437,1.53248846,877.95,876.93,0.1979404]
[1757351955639,1.53248846,877.9,876.93,0.1979404]
[1757351955938,0.62949622,877.89,876.93,0.1979404]
[1757351956138,0.62949622,877.88,876.93,0.1979404]
[1757351956338,0.62949622,877.87,876.93,0.1979404]
[1757351956540,0.62949622,877.86,876.93,0.1979404]
[1757351956838,0.62949622,877.85,876.93,0.1979404]
[1757351957137,0.62949622,877.84,876.93,0.1979404]
[1757351957335,0.62949622,877.83,876.93,0.1979404]
[1757351957539,0.62949622,877.82,876.93,0.1979404]
[1757351957736,0.62949622,877.81,876.93,0.1979404]
[1757351957940,0.62949622,877.8,876.93,0.1979404]
[1757351958240,0.62949622,877.79,876.93,0.1979404]
[1757351958441,0.62949622,877.78,876.93,0.1979404]
[1757351958737,0.62949622,877.77,876.93,0.1979404]
[1757351958941,0.62949622,877.76,876.93,0.1979404]
[1757351959138,0.62949622,877.75,876.93,0.1979404]
[1757351959341,0.62949622,877.74,876.93,0.1979404]
[1757351959638,0.51240952,877.9,876.93,0.1979404]
[1757351959841,2.55329725,878.72,876.93,0.1979404]
[1757351960042,2.55329725,878.77,876.93,0.1979404]
[1757351962541,2.55329725,878.55,876.93,0.1979404]
[1757351963043,2.55329725,878.58,876.93,0.1979404]
[1757351963639,2.55329725,878.53,876.93,0.1979404]
[1757351964644,2.55329725,878.56,876.93,0.1979404]
[1757351965141,2.55329725,878.6,876.93,0.1979404]
[1757351966343,2.55329725,878.55,876.93,0.1979404]
[1757351969350,2.55329725,878.63,876.93,0.1979404]
[1757351970449,2.55329725,878.67,876.93,0.1979404]
[1757351971647,2.55329725,878.61,876.93,0.1979404]
[1757351971851,0.63142084,878.6,876.93,0.1979404]
[1757351972049,0.63142084,878.59,876.93,0.1979404]
[1757351972249,0.63142084,878.58,876.93,0.1979404]
[1757351972456,0.63142084,878.57,876.93,0.1979404]
[1757351972657,0.63142084,878.56,876.93,0.1979404]
[1757351972855,0.63142084,878.55,876.93,0.1979404]
[1757351973055,3.56523548,878.97,876.93,0.1979404]
[1757351973056,0.63142084,878.54,876.93,0.1979404]
[1757351973253,0.63142084,878.53,876.93,0.1979404]
[1757351973451,0.63142084,878.52,876.93,0.1979404]
[1757351973752,0.63142084,878.51,876.93,0.1979404]
[1757351973951,0.63142084,878.5,876.93,0.1979404]
[1757351974257,0.63142084,878.49,876.93,0.1979404]
[1757351974458,0.63142084,878.48,876.93,0.1979404]
[1757351974658,0.63142084,878.47,876.93,0.1979404]
[1757351974856,0.63142084,878.46,876.93,0.1979404]
[1757351975056,0.63142084,878.45,876.93,0.1979404]
[1757351975256,0.63142084,878.44,876.93,0.1979404]
[1757351975551,0.63142084,878.43,876.93,0.1979404]
[1757351975753,0.63142084,878.42,876.93,0.1979404]
[1757351975953,0.63142084,878.41,876.93,0.1979404]
[1757351976155,0.63142084,878.4,876.93,0.1979404]
[1757351976354,0.63142084,878.39,876.93,0.1979404]
[1757351976653,0.63142084,878.38,876.93,0.1979404]
[1757351976953,0.63142084,878.37,876.93,0.1979404]
[1757351977258,0.63142084,878.36,876.93,0.1979404]
[1757351977457,0.63142084,878.35,876.93,0.1979404]
[1757351977660,0.63142084,878.34,876.93,0.1979404]
[1757351977952,0.63142084,878.33,876.93,0.1979404]
[1757351978158,0.63142084,878.32,876.93,0.1979404]
[1757351978359,0.63142084,878.31,876.93,0.1979404]
[1757351978558,0.63142084,878.3,876.93,0.1979404]
[1757351978756,0.63142084,878.29,876.93,0.1979404]
[1757351978958,0.63117585,878.28,876.93,0.1979404]
[1757351979259,0.63117585,878.27,876.93,0.1979404]
[1757351979558,0.63117585,878.26,876.93,0.1979404]
[1757351979755,1.53168057,878.14,876.93,0.1979404]
[1757351979953,0.63117585,878.13,876.93,0.1979404]
[1757351980156,0.63117585,878.12,876.93,0.1979404]
[1757351980361,0.63117585,878.11,876.93,0.1979404]
[1757351980561,0.63117585,878.1,876.93,0.1979404]
[1757351980760,0.63117585,878.09,876.93,0.1979404]
[1757351980961,0.63117585,878.08,876.93,0.1979404]
[1757351981161,0.63117585,878.07,876.93,0.1979404]
[1757351981358,0.63117585,878.06,876.93,0.1979404]
[1757351981563,0.63117585,878.05,876.93,0.1979404]
[1757351981859,2.55329725,879.1,876.93,0.1979404]
[1757351981860,1.02104965,877.91,876.93,0.1979404]
[1757351982071,0.63117585,877.9,876.93,0.1979404]
[1757351982268,0.63117585,877.89,876.93,0.1979404]
[1757351982471,2.55329725,879.11,876.93,0.1979404]
[1757351982871,2.55329725,879.07,876.93,0.1979404]
[1757351984575,3.17850212,879.06,876.93,0.1979404]
[1757351984873,0.62520487,879.05,876.93,0.1979404]
[1757351985074,0.62520487,879.04,876.93,0.1979404]
[1757351985273,0.62520487,879.03,876.93,0.1979404]
[1757351985473,0.62520487,879.02,876.93,0.1979404]
[1757351985671,0.62520487,879.01,876.93,0.1979404]
[1757351985874,0.62520487,879.0,876.93,0.1979404]
[1757351986071,0.62520487,878.99,876.93,0.1979404]
[1757351986270,0.62520487,878.98,876.93,0.1979404]
[1757351986476,0.62520487,878.97,876.93,0.1979404]
[1757351986669,0.62520487,878.96,876.93,0.1979404]
[1757351986874,0.62520487,878.95,876.93,0.1979404]
[1757351987070,0.62520487,878.94,876.93,0.1979404]
[1757351987373,0.62520487,878.93,876.93,0.1979404]
[1757351987571,0.62520487,878.92,876.93,0.1979404]
[1757351987775,0.62520487,878.91,876.93,0.1979404]
[1757351987971,0.62520487,878.9,876.93,0.1979404]
[1757351988175,0.62520487,878.89,876.93,0.1979404]
[1757351988378,0.62520487,878.88,876.93,0.1979404]
[1757351988672,0.62520487,878.87,876.93,0.1979404]
[1757351988875,0.62520487,878.86,876.93,0.1979404]
[1757351989075,0.62520487,878.85,876.93,0.1979404]
[1757351989275,0.62520487,878.84,876.93,0.1979404]
[1757351989572,0.62520487,878.83,876.93,0.1979404]
[1757351989770,0.62520487,878.82,876.93,0.1979404]
[1757351989975,0.62520487,878.81,876.93,0.1979404]
[1757351990274,0.62520487,878.8,876.93,0.1979404]
[1757351990476,0.62520487,878.79,876.93,0.1979404]
[1757351990676,0.62520487,878.78,876.93,0.1979404]
[1757351990873,0.62520487,878.77,876.93,0.1979404]
[1757351991076,0.62520487,878.76,876.93,0.1979404]
[1757351991275,0.62520487,878.75,876.93,0.1979404]
[1757351991577,0.62520487,878.74,876.93,0.1979404]
[1757351991774,0.62520487,878.73,876.93,0.1979404]
[1757351991973,0.62520487,878.72,876.93,0.1979404]
[1757351992177,0.62520487,878.71,876.93,0.1979404]